bitfinex-derivatives/quotes_BTCF0:USTF0_20241006
["timestamp","ask_amount","ask_price","bid_price","bid_amount"]
[1728232129223,0.063777,62721.0,62718.0,0.005]
[1728232129726,0.08421364,62721.0,62718.0,0.005]
[1728232129932,0.08521364,62721.0,62719.0,0.004]
[1728232130524,0.08521364,62721.0,62718.0,0.005]
[1728232131521,0.08421364,62721.0,62719.0,0.063779]
[1728232131719,0.08521364,62721.0,62719.0,0.063779]
[1728232132129,0.08521364,62721.0,62719.0,0.067779]
[1728232138330,0.063778,62720.0,62719.0,0.004]
[1728232138637,0.093778,62720.0,62719.0,0.004]
[1728232138822,0.124978,62720.0,62719.0,0.004]
[1728232139625,0.125978,62720.0,62719.0,0.004]
[1728232139825,0.0622,62720.0,62716.0,0.04766153]
[1728232140024,0.06378,62718.0,62716.0,0.04766153]
[1728232140932,0.06378,62718.0,62716.0,0.04866153]
[1728232141632,0.0612,62720.0,62716.0,0.04866153]
[1728232141838,0.124978,62720.0,62716.0,0.04866153]
[1728232142241,0.06378,62719.0,62716.0,0.04866153]
[1728232142935,0.06378,62719.0,62716.0,0.05566153]
[1728232143333,0.06378,62719.0,62716.0,0.04866153]
[1728232143529,0.06378,62719.0,62716.0,0.05566153]
[1728232144337,0.0612,62720.0,62717.0,0.04766153]
[1728232144543,0.0612,62720.0,62716.0,0.008]
[1728232144544,0.063781,62717.0,62716.0,0.05566153]
[1728232145330,0.063781,62717.0,62716.0,0.008]
[1728232145533,0.063781,62717.0,62716.0,0.001]
[1728232145933,0.063781,62717.0,62714.0,0.06354871]
[1728232146230,0.063781,62717.0,62716.0,0.007]
[1728232146741,0.063781,62717.0,62716.0,0.008]
[1728232147538,0.02043664,62721.0,62720.0,0.063778]
[1728232147729,0.3608,62722.0,62720.0,0.04770908]
[1728232147930,0.3608,62722.0,62721.0,0.063777]
[1728232148133,0.3608,62722.0,62721.0,0.094177]
[1728232148333,0.3608,62722.0,62721.0,0.14188608]
[1728232148833,0.38703703,62722.0,62721.0,0.094177]
[1728232149536,0.38703703,62722.0,62721.0,0.096177]
[1728232149839,0.38703703,62722.0,62721.0,0.14392879]
[1728232150040,0.38703703,62722.0,62721.0,0.096177]
[1728232150430,0.38803703,62722.0,62721.0,0.14392877]
[1728232150741,0.02723703,62722.0,62721.0,0.096177]
[1728232151045,0.02723703,62722.0,62721.0,0.14392871]
[1728232151249,0.02723703,62722.0,62721.0,0.11352871]
[1728232151641,0.02723703,62722.0,62721.0,0.065777]
[1728232151946,0.02723703,62722.0,62721.0,0.11352908]
[1728232152134,0.02723703,62722.0,62721.0,0.065777]
[1728232152338,0.02723703,62722.0,62721.0,0.11352781]
[1728232152644,0.09101303,62722.0,62721.0,0.04975154]
[1728232152845,0.09101303,62722.0,62721.0,0.002]
[1728232158849,0.09101303,62722.0,62721.0,0.04975568]
[1728232160541,0.20101303,62722.0,62721.0,0.04975568]
[1728232160845,0.20101303,62722.0,62721.0,0.002]
[1728232163443,0.56181303,62722.0,62721.0,0.002]
[1728232166950,0.56181303,62722.0,62721.0,0.04975568]
[1728232167142,0.56181303,62722.0,62721.0,0.02262842]
[1728232167350,0.56181303,62722.0,62718.0,0.06354871]
[1728232167351,0.063781,62717.0,62716.0,0.06354871]
[1728232168050,0.11,62718.0,62716.0,0.06368389]
[1728232168249,0.063781,62717.0,62716.0,0.06368389]
[1728232169338,0.063781,62717.0,62716.0,0.07068389]
[1728232169543,0.063781,62717.0,62716.0,0.07168389]
[1728232169742,0.063781,62717.0,62716.0,0.008]
[1728232169944,0.063781,62717.0,62716.0,0.07168389]
[1728232172056,0.08218024,62717.0,62716.0,0.07168389]
[1728232173053,0.08218024,62717.0,62716.0,0.008]
[1728232185370,0.01839924,62717.0,62716.0,0.071782]
[1728232191265,0.01839924,62717.0,62716.0,0.15138686]
[1728232192766,0.01839924,62717.0,62716.0,0.25495675]
[1728232193358,0.01839924,62717.0,62716.0,0.15138686]
[1728232193562,0.02623703,62722.0,62721.0,0.063777]
[1728232193779,0.067469,62729.0,62721.0,0.06366174]
[1728232194069,0.067469,62729.0,62718.0,0.07957717]
[1728232194070,0.067469,62729.0,62726.0,0.063772]
[1728232194257,0.11239155,62732.0,62726.0,0.063772]
[1728232194258,0.00239155,62732.0,62726.0,0.063772]
[1728232194459,0.00239155,62732.0,62731.0,0.063767]
[1728232194667,0.00239155,62732.0,62731.0,0.173767]
[1728232195756,0.00239155,62732.0,62731.0,0.23731984]
[1728232196368,0.0037,62739.0,62738.0,0.06376]
[1728232196667,0.063757,62741.0,62738.0,0.17376]
[1728232197169,0.3608,62745.0,62739.0,0.3608]
[1728232197359,0.0037,62749.0,62744.0,0.11]
[1728232197561,0.00239103,62752.0,62751.0,0.063747]
[1728232197759,0.00239103,62752.0,62751.0,0.173747]
[1728232197961,0.02787457,62752.0,62751.0,0.173747]
[1728232198270,0.00239103,62752.0,62751.0,0.173747]
[1728232198463,0.00239103,62752.0,62751.0,0.063747]
[1728232199354,0.00239103,62752.0,62751.0,0.064747]
[1728232199561,0.00339103,62752.0,62751.0,0.064747]
[1728232200164,0.00439103,62752.0,62751.0,0.064747]
[1728232200370,0.002,62752.0,62751.0,0.064747]
[1728232200569,0.002,62752.0,62751.0,1.142827]
[1728232200570,0.00029194,62752.0,62751.0,1.142827]
[1728232200771,0.00087194,62752.0,62751.0,1.142827]
[1728232200971,0.21633392,62752.0,62751.0,0.77]
[1728232201270,0.21733392,62752.0,62751.0,0.77]
[1728232201571,0.42340218,62752.0,62751.0,0.77]
[1728232201766,0.42340218,62752.0,62751.0,0.833747]
[1728232202066,0.21733392,62752.0,62751.0,0.17]
[1728232202272,0.21733392,62752.0,62751.0,0.175]
[1728232202273,0.21646198,62752.0,62751.0,0.175]
[1728232202478,0.42253024,62752.0,62751.0,0.068747]
[1728232202664,0.73793964,62752.0,62751.0,0.005]
[1728232202864,0.73793964,62752.0,62740.0,0.0613]
[1728232202865,0.59240541,62752.0,62733.0,0.3608]
[1728232203171,0.3791614,62746.0,62743.0,0.063755]
[1728232203376,0.15901816,62745.0,62744.0,0.063754]
[1728232203676,0.15901816,62745.0,62744.0,0.233754]
[1728232203874,0.09226104,62745.0,62744.0,0.233754]
[1728232204083,0.25065841,62745.0,62744.0,0.233754]
[1728232204380,0.30710223,62745.0,62744.0,0.233754]
[1728232204575,0.30810223,62745.0,62744.0,0.233754]
[1728232205286,0.04369275,62745.0,62744.0,0.233754]
[1728232205765,0.09326104,62745.0,62744.0,0.233754]
[1728232205962,0.09326104,62745.0,62744.0,0.237754]
[1728232206174,0.09226104,62745.0,62744.0,0.237754]
[1728232206381,0.09326104,62745.0,62744.0,0.233754]
[1728232206582,0.09326104,62745.0,62744.0,0.242754]
[1728232207075,0.09326104,62745.0,62744.0,0.067754]
[1728232207271,0.09226104,62745.0,62744.0,0.068754]
[1728232207667,0.14118424,62745.0,62744.0,0.068754]
[1728232208186,0.29958161,62745.0,62744.0,0.068754]
[1728232208871,0.45659364,62745.0,62744.0,0.03865866]
[1728232209074,0.45659364,62745.0,62744.0,0.03765866]
[1728232209278,0.45759364,62745.0,62744.0,0.03865866]
[1728232209982,0.45759364,62745.0,62744.0,0.03365866]
[1728232210182,0.6168637,62745.0,62744.0,0.03365866]
[1728232210376,0.6168637,62745.0,62739.0,0.3608]
[1728232210377,0.45859364,62745.0,62740.0,0.063757]
[1728232210584,0.45859364,62745.0,62739.0,0.3608]
[1728232210585,0.15827968,62743.0,62742.0,0.063756]
[1728232210785,0.29946392,62743.0,62742.0,0.063756]
[1728232211080,0.61487332,62743.0,62741.0,0.063757]
[1728232211279,0.14118424,62742.0,62741.0,0.063757]
[1728232211487,0.45659364,62742.0,62741.0,0.063757]
[1728232211980,0.35810215,62742.0,62741.0,0.063757]
[1728232212589,0.35810215,62742.0,62741.0,0.067757]
[1728232212979,0.35810215,62742.0,62739.0,0.28494993]
[1728232213179,0.3154094,62741.0,62740.0,0.063758]
[1728232213682,0.34954733,62741.0,62740.0,0.063758]
[1728232214488,0.35054733,62741.0,62740.0,0.063758]
[1728232215978,0.35054733,62741.0,62740.0,0.064758]
[1728232216582,0.35054733,62741.0,62740.0,0.065758]
[1728232217180,0.35054733,62741.0,62740.0,0.067758]
[1728232217481,0.3164094,62741.0,62740.0,0.067758]
[1728232217680,0.37537139,62741.0,62740.0,0.067758]
[1728232217879,0.41440615,62741.0,62740.0,0.067758]
[1728232218984,0.41440615,62741.0,62740.0,0.002]
[1728232218985,0.58592427,62741.0,62740.0,0.002]
[1728232219379,0.58592427,62741.0,62740.0,0.065758]
[1728232219684,0.58692427,62741.0,62740.0,0.063758]
[1728232219984,0.3154094,62737.0,62731.0,0.01349051]
[1728232220192,0.3154094,62737.0,62736.0,0.233762]
[1728232220492,0.55776045,62737.0,62736.0,0.233762]
[1728232220989,0.55776045,62737.0,62727.0,0.36539348]
[1728232221179,0.25394971,62735.0,62734.0,0.233764]
[1728232221491,0.49529656,62735.0,62734.0,0.233764]
[1728232222085,0.42987937,62735.0,62734.0,0.063764]
[1728232222284,0.49529656,62735.0,62734.0,0.063764]
[1728232222684,0.42987937,62735.0,62734.0,0.063764]
[1728232222989,0.17592966,62735.0,62734.0,0.067764]
[1728232223195,0.17892966,62735.0,62734.0,0.067764]
[1728232224390,0.49433906,62735.0,62734.0,0.067764]
[1728232224690,0.62351925,62735.0,62734.0,0.04616255]
[1728232224888,0.62351925,62735.0,62727.0,0.35989348]
[1728232224889,0.62351925,62735.0,62729.0,0.063769]
[1728232225090,0.066763,62735.0,62734.0,0.005]
[1728232225294,0.2443798,62735.0,62734.0,0.068764]
[1728232225586,0.2433798,62735.0,62734.0,0.065764]
[1728232225989,0.2433798,62735.0,62734.0,0.17]
[1728232226193,0.2413798,62735.0,62734.0,0.17]
[1728232226391,0.1779537,62735.0,62734.0,0.234764]
[1728232226581,0.1625378,62735.0,62734.0,0.834764]
[1728232226787,0.1625378,62735.0,62734.0,1.195564]
[1728232226788,8e-07,62735.0,62734.0,1.195564]
[1728232227093,0.0074,62744.0,62743.0,0.063755]
[1728232227295,0.3154094,62744.0,62743.0,0.233755]
[1728232228699,0.3164094,62744.0,62743.0,0.234755]
[1728232228998,0.3294094,62744.0,62743.0,0.235755]
[1728232229497,0.3174094,62744.0,62743.0,0.234755]
[1728232231883,0.3174094,62744.0,62743.0,0.064755]
[1728232241103,0.3811634,62744.0,62743.0,0.001]
[1728232241893,0.55708309,62744.0,62743.0,0.001]
[1728232244900,0.3154094,62742.0,62740.0,0.04719073]
[1728232245103,0.17591969,62741.0,62740.0,0.04719073]
[1728232245808,0.1187499,62741.0,62740.0,0.04719073]
[1728232246199,0.1187499,62741.0,62740.0,0.05019073]
[1728232246708,0.1187499,62741.0,62740.0,0.04719073]
[1728232246908,0.1187499,62741.0,62740.0,0.05019073]
[1728232247793,0.1207499,62741.0,62740.0,0.05019073]
[1728232249211,0.002,62741.0,62740.0,0.11348015]
[1728232252209,0.002,62741.0,62740.0,0.05019073]
[1728232253908,0.3811664,62741.0,62740.0,0.06628942]
[1728232254105,0.06376,62739.0,62737.0,0.06328942]
[1728232254305,0.3456094,62738.0,62737.0,0.12705042]
[1728232255412,0.3456094,62738.0,62737.0,0.063761]
[1728232255807,0.3466094,62738.0,62737.0,0.069761]
[1728232256113,0.37246546,62738.0,62737.0,0.069761]
[1728232256411,0.37246546,62738.0,62737.0,0.26736358]
[1728232256601,0.37246546,62738.0,62737.0,0.26739531]
[1728232256802,0.37146546,62738.0,62737.0,0.26139558]
[1728232257109,0.23298206,62738.0,62737.0,0.069761]
[1728232257310,0.23298079,62738.0,62737.0,0.069761]
[1728232257508,0.17580805,62738.0,62737.0,0.069761]
[1728232257911,0.17780805,62738.0,62737.0,0.069761]
[1728232258108,0.12175199,62738.0,62737.0,0.069761]
[1728232260512,0.12175199,62738.0,62737.0,0.669761]
[1728232261014,0.12174384,62738.0,62737.0,0.669761]
[1728232261717,0.0661,62745.0,62744.0,0.063754]
[1728232261718,0.0037,62745.0,62744.0,0.063754]
[1728232261900,0.0037,62754.0,62751.0,0.063747]
[1728232261901,0.0037,62752.0,62751.0,0.063747]
[1728232262104,0.05716282,62757.0,62753.0,0.17]
[1728232262312,0.3228094,62757.0,62756.0,0.590842]
[1728232262612,0.06456282,62757.0,62756.0,0.230042]
[1728232262917,0.0074,62757.0,62756.0,0.230042]
[1728232264302,0.0214,62757.0,62756.0,0.231042]
[1728232264711,0.0214,62757.0,62756.0,0.232042]
[1728232272111,0.19726628,62757.0,62754.0,0.20074566]
[1728232272311,0.17586628,62756.0,62754.0,0.20074566]
[1728232272522,0.17586628,62755.0,62754.0,0.26448966]
[1728232273127,0.14508557,62755.0,62754.0,0.26448966]
[1728232273427,0.14508557,62755.0,62754.0,0.26548966]
[1728232274319,0.15908557,62755.0,62754.0,0.26648966]
[1728232274925,0.16008557,62755.0,62754.0,0.26648966]
[1728232275111,0.16008557,62755.0,62754.0,0.43648966]
[1728232275312,0.10293314,62755.0,62754.0,0.43648966]
[1728232277117,0.12866955,62755.0,62754.0,0.43648966]
[1728232278513,0.12866955,62755.0,62754.0,0.37648966]
[1728232279012,0.12866955,62755.0,62754.0,0.175744]
[1728232279215,0.015,62755.0,62754.0,0.175744]
[1728232280422,0.015,62755.0,62754.0,0.065744]
[1728232284525,0.015,62755.0,62754.0,0.235744]
[1728232286117,0.3688,62782.0,62755.0,0.47804]
[1728232286423,0.0933,62781.0,62762.0,0.063736]
[1728232286621,0.0037,62778.0,62762.0,0.663736]
[1728232286824,0.3154094,62779.0,62774.0,0.17]
[1728232287125,0.42144638,62778.0,62777.0,0.06372]
[1728232287324,0.46045842,62778.0,62777.0,0.05109287]
[1728232288621,0.46045842,62778.0,62777.0,0.05209287]
[1728232289525,0.14704902,62778.0,62777.0,0.05209287]
[1728232289829,0.46700914,62778.0,62777.0,0.04181708]
[1728232290215,0.39963202,62778.0,62777.0,0.04281708]
[1728232290630,0.14504902,62778.0,62777.0,0.04281708]
[1728232291127,0.14504902,62778.0,62777.0,0.04181708]
[1728232291333,0.14504902,62778.0,62777.0,0.04281708]
[1728232291530,0.46045842,62778.0,62777.0,0.04281708]
[1728232291836,0.14504902,62778.0,62777.0,0.04281708]
[1728232292032,0.14704902,62778.0,62777.0,0.04181708]
[1728232292219,0.14704902,62778.0,62777.0,0.04281708]
[1728232293321,0.14704902,62778.0,62775.0,0.28989644]
[1728232293521,0.14504184,62777.0,62776.0,0.063721]
[1728232294217,0.002,62778.0,62777.0,0.06372]
[1728232294821,0.003,62778.0,62777.0,0.06372]
[1728232295628,0.001,62778.0,62777.0,0.06472]
[1728232296227,0.3164094,62778.0,62777.0,0.06472]
[1728232296427,0.3194094,62778.0,62777.0,0.06572]
[1728232296624,0.004,62778.0,62777.0,0.06572]
[1728232297135,0.3194094,62778.0,62777.0,0.06572]
[1728232307338,0.35841971,62778.0,62777.0,0.06572]
[1728232308844,0.3194094,62778.0,62777.0,0.06572]
[1728232309141,0.52982621,62778.0,62775.0,0.1718]
[1728232309348,0.52982621,62778.0,62775.0,0.17]
[1728232309349,0.52582621,62777.0,62775.0,0.17]
[1728232309643,0.21041681,62776.0,62775.0,0.233722]
[1728232310946,0.14504259,62776.0,62775.0,0.233722]
[1728232311141,0.21041681,62776.0,62775.0,0.233722]
[1728232311539,0.21041681,62776.0,62775.0,0.234722]
[1728232312140,0.21041681,62776.0,62775.0,0.235722]
[1728232312446,0.21041681,62776.0,62775.0,0.175722]
[1728232312638,0.21541681,62776.0,62775.0,0.175722]
[1728232312958,0.21841681,62776.0,62775.0,0.175722]
[1728232313335,0.47299981,62776.0,62775.0,0.175722]
[1728232314250,0.47299981,62776.0,62775.0,0.14960994]
[1728232314941,0.21841681,62776.0,62775.0,0.14960994]
[1728232315133,0.47297856,62776.0,62768.0,0.32034093]
[1728232315339,0.21041681,62775.0,62768.0,0.31294093]
[1728232315549,0.21041681,62774.0,62768.0,0.31294093]
[1728232315845,0.21041157,62773.0,62768.0,0.31294093]
[1728232316054,0.21041147,62772.0,62770.0,0.063727]
[1728232316348,0.14503891,62771.0,62770.0,0.28992759]
[1728232316546,0.14503891,62771.0,62770.0,0.99992759]
[1728232316742,0.06537256,62775.0,62774.0,0.063723]
[1728232316945,0.25456175,62786.0,62774.0,0.3608]
[1728232317163,0.25456175,62786.0,62785.0,0.173712]
[1728232317638,0.03408935,62791.0,62785.0,0.11]
[1728232317847,0.03408935,62791.0,62787.0,0.06371]
[1728232318242,0.6762094,62788.0,62787.0,0.11119815]
[1728232318841,0.6802094,62788.0,62787.0,0.11119815]
[1728232319257,0.6802094,62788.0,62787.0,0.06371]
[1728232319448,0.6762094,62788.0,62787.0,0.06371]
[1728232319646,0.6802094,62788.0,62787.0,0.06471]
[1728232319956,0.6862094,62788.0,62787.0,0.06571]
[1728232320256,0.6862094,62788.0,62787.0,0.11319815]
[1728232320558,0.3254094,62788.0,62787.0,0.29925919]
[1728232321262,0.3224094,62788.0,62787.0,0.29925919]
[1728232321755,0.001,62788.0,62787.0,0.23571]
[1728232321955,0.0317,62798.0,62797.0,0.0637]
[1728232322256,0.0317,62798.0,62797.0,0.2337]
[1728232323155,0.0357,62798.0,62797.0,0.2347]
[1728232323549,0.0357,62798.0,62797.0,0.0647]
[1728232323856,0.0357,62798.0,62797.0,0.2347]
[1728232325056,0.0357,62798.0,62797.0,0.2357]
[1728232326858,0.004,62798.0,62797.0,0.2357]
[1728232327652,0.004,62798.0,62797.0,0.0657]
[1728232327851,0.004,62798.0,62797.0,0.2357]
[1728232332157,0.004,62798.0,62794.0,0.00616238]
[1728232332158,0.15722488,62798.0,62794.0,0.00616238]
[1728232332363,0.21033879,62797.0,62796.0,0.063701]
[1728232332562,0.21033879,62797.0,62796.0,0.233701]
[1728232333247,0.17134322,62797.0,62789.0,0.3608]
[1728232333451,0.004,62798.0,62797.0,0.0637]
[1728232333664,0.17133833,62798.0,62797.0,0.0637]
[1728232334551,0.17133826,62798.0,62797.0,0.0637]
[1728232334868,0.42496814,62798.0,62797.0,0.0637]
[1728232335166,0.42596814,62798.0,62797.0,0.0637]
[1728232335476,0.20707501,62798.0,62797.0,0.0637]
[1728232335964,0.002,62798.0,62797.0,0.0657]
[1728232336766,0.002,62798.0,62797.0,1.14342]
[1728232337251,0.06534822,62798.0,62797.0,1.50422]
[1728232337451,0.06534822,62798.0,62797.0,1.67422]
[1728232338352,0.06534822,62798.0,62797.0,1.526232]
[1728232338556,0.0326,62805.0,62804.0,0.063693]
[1728232338755,0.08970507,62805.0,62804.0,0.233693]
[1728232338950,0.05710507,62805.0,62804.0,0.233693]
[1728232339162,0.1062867,62814.0,62804.0,0.233693]
[1728232339163,0.0309,62812.0,62804.0,0.233693]
[1728232339352,0.0309,62812.0,62811.0,0.233686]
[1728232341054,0.0309,62812.0,62811.0,0.234686]
[1728232341564,0.0309,62812.0,62811.0,0.235686]
[1728232342252,0.0309,62812.0,62811.0,0.26096121]
[1728232342981,0.0309,62812.0,62811.0,0.065686]
[1728232343467,0.13999239,62812.0,62811.0,0.065686]
[1728232345666,0.52594945,62812.0,62811.0,0.065686]
[1728232346566,0.16514945,62812.0,62811.0,0.065686]
[1728232349675,0.16514945,62812.0,62804.0,0.02876203]
[1728232349676,0.33514945,62812.0,62806.0,0.06369]
[1728232350168,0.33514945,62812.0,62807.0,0.06369]
[1728232350369,0.27514945,62812.0,62806.0,0.11]
[1728232350775,0.04887315,62811.0,62807.0,0.06369]
[1728232350972,0.04887315,62811.0,62800.0,0.0037]
[1728232350973,0.0037,62815.0,62814.0,0.063683]
[1728232351273,0.0329,62815.0,62814.0,0.39972172]
[1728232352476,0.0339,62815.0,62814.0,0.234683]
[1728232353064,0.0349,62815.0,62814.0,0.235683]
[1728232354381,0.0301,62821.0,62818.0,0.063678]
[1728232354673,0.13919239,62821.0,62820.0,0.0473605]
[1728232354969,0.13919239,62821.0,62819.0,0.1110375]
[1728232355378,0.13919239,62821.0,62820.0,0.0473605]
[1728232355563,0.13919239,62821.0,62819.0,0.0473605]
[1728232355765,0.14019239,62821.0,62819.0,0.0473605]
[1728232355961,0.063678,62819.0,62817.0,0.04737031]
[1728232356162,0.063678,62819.0,62814.0,0.06314734]
[1728232356372,0.17277039,62819.0,62814.0,0.06314734]
[1728232356672,0.17277039,62819.0,62813.0,0.12683034]
[1728232357173,0.3608,62814.0,62813.0,0.12683034]
[1728232357373,0.3608,62814.0,62813.0,0.063683]
[1728232357572,0.46989239,62814.0,62813.0,0.063683]
[1728232358477,0.46989239,62814.0,62813.0,0.064683]
[1728232359377,0.47089239,62814.0,62813.0,0.064683]
[1728232359580,0.47089239,62814.0,62813.0,0.065683]
[1728232362573,0.47089239,62814.0,62813.0,0.002]
[1728232362770,0.5197611,62814.0,62813.0,0.002]
[1728232362986,0.51976137,62814.0,62813.0,0.002]
[1728232365477,0.5455676,62814.0,62813.0,0.002]
[1728232367987,0.54556788,62814.0,62813.0,0.002]
[1728232369077,0.54556788,62814.0,62806.0,0.0037]
[1728232369078,1.80140487,62814.0,62806.0,0.0037]
[1728232369380,0.10909239,62807.0,62805.0,0.11071775]
[1728232369585,0.1224857,62806.0,62803.0,0.11071775]
[1728232369794,0.10909239,62806.0,62805.0,0.11071775]
[1728232370090,0.10909239,62806.0,62805.0,0.44312704]
[1728232370394,0.10909239,62806.0,62805.0,0.6176071]
[1728232370791,0.10909239,62806.0,62805.0,0.50681904]
[1728232372283,0.10909239,62806.0,62805.0,0.26906423]
[1728232372480,0.10909239,62806.0,62805.0,0.27004576]
[1728232372481,0.11109239,62806.0,62805.0,0.27004576]
[1728232373087,0.11309239,62806.0,62805.0,0.27104576]
[1728232374882,0.17678339,62806.0,62805.0,0.27104576]
[1728232375380,1.25446339,62806.0,62805.0,0.27104576]
[1728232375574,1.25446339,62806.0,62805.0,0.12334647]
[1728232375987,1.25446339,62806.0,62805.0,0.21824637]
[1728232376486,1.31095395,62806.0,62805.0,0.12334647]
[1728232376881,1.31095395,62806.0,62805.0,0.01425408]
[1728232376882,1.20186156,62806.0,62805.0,0.01425408]
[1728232377085,0.063694,62803.0,62802.0,0.0948999]
[1728232377289,0.233694,62803.0,62802.0,0.0948999]
[1728232377483,0.233694,62803.0,62796.0,0.063701]
[1728232377484,1.24768,62803.0,62800.0,0.0948999]
[1728232377792,0.063696,62801.0,62800.0,0.0948999]
[1728232378287,0.063696,62801.0,62800.0,0.09483932]
[1728232378694,0.063696,62801.0,62798.0,0.063699]
[1728232378883,0.063696,62801.0,62799.0,0.14771837]
[1728232379184,0.063696,62801.0,62798.0,0.063699]
[1728232379384,0.063696,62801.0,62800.0,0.0948211]
[1728232380186,0.426496,62801.0,62800.0,0.0948211]
[1728232380692,0.3668,62801.0,62800.0,0.21241219]
[1728232380880,0.3678,62801.0,62800.0,0.21341219]
[1728232382287,0.3678,62801.0,62800.0,0.14971519]
[1728232384484,0.37571849,62801.0,62800.0,0.002]
[1728232385392,0.431496,62801.0,62800.0,0.002]
[1728232391489,0.38368408,62801.0,62800.0,0.002]
[1728232391797,0.3608,62801.0,62800.0,0.002]
[1728232391982,0.424496,62801.0,62800.0,0.12336298]
[1728232392597,0.424496,62801.0,62800.0,0.21824354]
[1728232393493,0.424496,62801.0,62800.0,0.21825422]
[1728232394286,0.424496,62801.0,62800.0,0.12336298]
[1728232394996,0.424496,62801.0,62800.0,0.002]
[1728232395192,0.424496,62801.0,62800.0,0.12336501]
[1728232396494,0.424496,62801.0,62800.0,0.27108623]
[1728232399702,0.424496,62801.0,62800.0,0.002]
[1728232401788,0.3608,62801.0,62800.0,0.002]
[1728232401991,0.3608,62801.0,62800.0,0.235697]
[1728232403093,0.00084,62806.0,62800.0,0.172]
[1728232403296,0.3608,62802.0,62801.0,0.063696]
[1728232403505,0.3109,62802.0,62801.0,0.063696]
[1728232404503,0.3109,62802.0,62801.0,0.064696]
[1728232405006,0.39356262,62809.0,62808.0,0.063689]
[1728232405202,0.38906262,62809.0,62808.0,0.233689]
[1728232405500,0.3608,62809.0,62808.0,0.233689]
[1728232406420,0.39412782,62816.0,62815.0,0.063682]
[1728232406591,0.38962782,62816.0,62815.0,0.3326945]
[1728232407691,0.38962782,62816.0,62815.0,0.2700125]
[1728232408095,0.3608,62816.0,62815.0,0.2700125]
[1728232408409,0.30503453,62816.0,62815.0,0.2700125]
[1728232408607,0.30503453,62816.0,62815.0,0.27000852]
[1728232408901,0.30503453,62816.0,62815.0,0.33369052]
[1728232409704,0.30503453,62816.0,62815.0,0.33469052]
[1728232410097,0.00238807,62822.0,62815.0,0.27100852]
[1728232410298,0.00238807,62822.0,62821.0,0.09483393]
[1728232410494,0.00238807,62822.0,62821.0,0.2161324]
[1728232411194,0.00238807,62822.0,62821.0,0.12132967]
[1728232411397,0.26479395,62822.0,62821.0,0.12132967]
[1728232411601,0.063676,62821.0,62820.0,0.0789948]
[1728232412007,0.063677,62820.0,62816.0,0.09480273]
[1728232412194,0.063677,62820.0,62819.0,0.07899906]
[1728232412391,0.063677,62820.0,62819.0,0.12132583]
[1728232412694,0.063677,62820.0,62819.0,0.07899419]
[1728232412893,0.063677,62820.0,62818.0,0.07899419]
[1728232413502,0.063676,62821.0,62820.0,0.001]
[1728232414007,0.17238807,62822.0,62819.0,0.07999419]
[1728232414202,0.063677,62820.0,62819.0,0.07999419]
[1728232414404,0.17238807,62822.0,62819.0,0.07999419]
[1728232414604,0.17238807,62822.0,62818.0,0.001]
[1728232414805,0.063676,62821.0,62820.0,0.001]
[1728232416301,0.063677,62820.0,62819.0,0.001]
[1728232417310,0.063677,62820.0,62817.0,0.063679]
[1728232417606,0.063677,62820.0,62819.0,0.001]
[1728232418409,0.424477,62820.0,62819.0,0.001]
[1728232419801,0.424477,62820.0,62819.0,0.002]
[1728232421302,0.063677,62820.0,62819.0,0.002]
[1728232421601,0.4733456,62820.0,62819.0,0.002]
[1728232421901,0.51233343,62820.0,62819.0,0.002]
[1728232422103,0.51233343,62820.0,62819.0,0.065678]
[1728232422709,0.56943359,62820.0,62819.0,0.065678]
[1728232422903,0.50575703,62820.0,62819.0,0.235678]
[1728232423412,0.44865643,62820.0,62819.0,0.235678]
[1728232424522,0.44865643,62820.0,62819.0,1.313238]
[1728232424815,0.08785643,62820.0,62819.0,1.313238]
[1728232425704,0.08785643,62820.0,62819.0,0.713238]
[1728232426910,0.15871741,62820.0,62819.0,0.713238]
[1728232427509,0.24657384,62820.0,62819.0,0.713238]
[1728232427719,0.24657384,62820.0,62819.0,0.235678]
[1728232427908,0.08785643,62820.0,62819.0,0.235678]
[1728232428208,0.15874162,62820.0,62819.0,0.235678]
[1728232428414,0.15874162,62820.0,62819.0,0.065678]
[1728232428610,0.03898783,62820.0,62819.0,0.065678]
[1728232428809,0.00238807,62822.0,62820.0,0.063676]
[1728232429011,0.08784565,62821.0,62820.0,0.063676]
[1728232429718,0.17458487,62822.0,62820.0,0.33266498]
[1728232430019,0.3608,62825.0,62821.0,0.12131269]
[1728232430214,0.3608,62825.0,62822.0,0.21610413]
[1728232430519,0.3608,62825.0,62823.0,0.21610413]
[1728232430823,0.3608,62825.0,62824.0,0.12131269]
[1728232431212,0.424472,62825.0,62824.0,0.12131269]
[1728232431811,0.424472,62825.0,62824.0,0.20036535]
[1728232432008,0.424472,62825.0,62824.0,0.12131269]
[1728232432209,0.457672,62825.0,62824.0,0.12131269]
[1728232433118,0.457672,62825.0,62824.0,0.12231269]
[1728232433321,0.457672,62825.0,62824.0,0.12331269]
[1728232436612,0.54552313,62825.0,62824.0,0.002]
[1728232436821,0.60262227,62825.0,62824.0,0.002]
[1728232438116,0.60262552,62825.0,62824.0,0.002]
[1728232438922,0.063674,62823.0,62821.0,0.063675]
[1728232439225,0.25785438,62822.0,62821.0,0.063675]
[1728232439523,0.31495352,62822.0,62821.0,0.063675]
[1728232439921,0.25785438,62822.0,62821.0,0.063675]
[1728232440121,0.25785438,62822.0,62821.0,0.064675]
[1728232440424,0.25785438,62822.0,62821.0,0.065675]
[1728232440922,0.31495454,62822.0,62821.0,0.065675]
[1728232442427,0.4328131,62822.0,62821.0,0.065675]
[1728232442728,0.48991326,62822.0,62821.0,0.065675]
[1728232442929,0.48991326,62822.0,62821.0,0.002]
[1728232443122,0.55359516,62822.0,62821.0,0.002]
[1728232443716,0.37862954,62822.0,62821.0,0.002]
[1728232444216,0.49650569,62822.0,62821.0,0.002]
[1728232444418,0.55360585,62822.0,62821.0,0.002]
[1728232444634,0.34497631,62822.0,62821.0,0.33467108]
[1728232444823,0.17497631,62822.0,62821.0,0.33467108]
[1728232446421,0.17497631,62822.0,62821.0,0.33466114]
[1728232448624,0.17497631,62822.0,62821.0,0.36476114]
[1728232450029,0.3608,62825.0,62821.0,0.30108514]